bitfinex/quotes_SOLUSD_20260224
["timestamp","ask_amount","ask_price","bid_price","bid_amount"]
[1771905343981,0.977755,77.059,77.032,0.99364548]
[1771905344488,0.977755,77.069,77.041,0.99364548]
[1771905346215,12.97555405,77.068,77.041,0.99364548]
[1771905346400,0.977755,77.067,77.042,12.97993302]
[1771905346895,0.977755,77.059,77.021,0.99364548]
[1771905347114,0.977755,77.049,77.021,0.99364548]
[1771905347600,0.977755,77.049,77.024,0.99364548]
[1771905348498,0.977755,77.049,77.025,12.98279779]
[1771905348686,13.95659111,77.049,77.025,12.98279779]
[1771905348880,1.06017675,77.039,77.01,11.55518859]
[1771905349080,1.06017675,77.039,77.003,0.9831763]
[1771905349400,1.06017675,77.029,77.003,12.98650701]
[1771905349791,1.06017675,77.029,77.0,0.2]
[1771905350392,1.06017675,77.029,77.001,12.98684432]
[1771905350905,1.06017675,77.029,76.99,11.55518859]
[1771905350906,1.06017675,77.019,76.98,11.55518859]
[1771905351108,1.06017675,77.009,76.979,0.9831763]
[1771905351904,1.06017675,77.009,76.98,11.55518859]
[1771905352204,1.06017675,77.009,76.979,0.9831763]
[1771905353203,1.06017675,77.009,76.98,12.99038711]
[1771905353500,11.55518859,77.02,76.991,0.9831763]
[1771905353720,1.06017675,77.022,76.991,0.9831763]
[1771905354087,1.06017675,77.019,76.991,0.9831763]
[1771905355603,1.06017675,77.009,76.981,0.9831763]
[1771905357707,1.06017675,77.007,76.981,0.9831763]
[1771905357900,11.55518859,77.0,76.971,0.9831763]
[1771905358108,1.06017675,76.989,76.97,0.2]
[1771905358500,1.06017675,77.009,76.972,0.9831763]
[1771905358694,1.06017675,77.009,76.981,0.9831763]
[1771905359495,1.06017675,77.009,76.971,45.47167114]
[1771905359496,1.06017675,77.008,76.972,0.9831763]
[1771905359697,1.06017675,77.008,76.971,12.99190604]
[1771905359698,1.06017675,77.009,76.982,12.99004962]
[1771905359905,1.06017675,77.009,76.983,0.9831763]
[1771905361609,1.06017675,76.999,76.971,12.99185625]
[1771905361813,1.06017675,76.989,76.97,0.2]
[1771905363697,1.06017675,76.979,76.953,0.9831763]
[1771905364004,1.06017675,76.977,76.95,0.2]
[1771905364200,1.06017675,76.977,76.951,0.9831763]
[1771905364795,1.06017675,76.969,76.95,0.2]
[1771905365719,11.55518859,76.99,76.951,0.9831763]
[1771905365905,12.98886853,76.989,76.953,0.9831763]
[1771905367114,11.55518859,76.98,76.953,0.9831763]
[1771905368114,13.96439951,76.979,76.953,0.9831763]
[1771905368414,0.97384365,76.979,76.954,12.9947761]
[1771905368907,0.97384365,76.979,76.954,13.9779524]
[1771905369106,0.97384365,76.979,76.954,0.9831763]
[1771905369311,0.97520965,76.999,76.971,0.9831763]
[1771905369801,11.55518859,76.99,76.963,0.9831763]
[1771905370000,11.55518859,76.99,76.964,12.99308767]
[1771905370626,3.69383402,77.01,76.971,0.9831763]
[1771905370627,12.98569082,77.008,76.971,0.9831763]
[1771905370800,12.98569082,77.008,76.981,0.9831763]
[1771905371220,0.97762034,77.007,76.981,0.9831763]
[1771905371597,0.97762034,77.007,76.97,11.55518859]
[1771905371598,11.55518859,77.0,76.97,11.55518859]
[1771905371803,11.55518859,77.0,76.971,0.9831763]
[1771905373104,12.98569082,77.008,76.973,0.9831763]
[1771905373422,11.55518859,77.02,76.991,0.9831763]
[1771905374213,0.98114129,77.009,76.973,0.9831763]
[1771905374425,0.98114129,76.999,76.973,0.9831763]
[1771905375096,11.55518859,77.0,76.975,0.9831763]
[1771905375298,12.98618794,77.005,76.975,0.9831763]
[1771905376503,0.98455734,77.015,76.981,0.9831763]
[1771905376818,12.98465424,77.014,76.981,0.9831763]
[1771905377113,13.96921158,77.014,76.981,0.9831763]
[1771905377298,13.96921158,77.014,76.982,12.99004962]
[1771905377299,0.98455734,77.009,76.982,12.99004962]
[1771905377500,0.98455734,77.009,76.983,0.9831763]
[1771905377911,3.69383402,77.016,76.983,0.9831763]
[1771905378217,11.55518859,77.01,76.983,0.9831763]
[1771905379415,12.98396287,77.019,76.991,1.04906248]
[1771905379614,11.55518859,77.02,76.991,1.04906248]
[1771905380318,0.98895026,77.009,76.981,1.04906248]
[1771905382301,0.99209515,76.999,76.971,1.05984712]
[1771905382616,11.55518859,76.98,76.954,1.05984712]
[1771905382822,0.9931241,76.985,76.951,12.99528271]
[1771905383012,0.9931241,76.992,76.961,1.05984712]
[1771905383316,0.9931241,76.989,76.961,1.05984712]
[1771905384211,0.99414081,76.979,76.95,0.2]
[1771905384515,0.99414081,76.969,76.95,0.2]
[1771905385619,11.55518859,76.96,76.934,1.05984712]
[1771905386117,0.99414081,76.969,76.934,1.05984712]
[1771905386620,12.99241243,76.968,76.934,1.05984712]
[1771905386807,12.99241243,76.968,76.936,1.05984712]
[1771905387209,13.98955814,76.968,76.936,1.05984712]
[1771905388718,11.55518859,76.98,76.941,1.05984712]
[1771905388923,0.99907769,76.979,76.941,1.05984712]
[1771905389325,11.59922031,76.97,76.941,1.05984712]
[1771905390624,12.99224363,76.969,76.942,12.99680278]
[1771905390808,12.99224363,76.969,76.943,1.05984712]
[1771905391927,5.19705217,76.97,76.943,1.05984712]
[1771905393014,12.99224363,76.969,76.944,12.99646496]
[1771905393220,12.99224363,76.969,76.945,1.05984712]
[1771905394531,5.19705217,76.97,76.945,1.05984712]
[1771905395024,5.19705217,76.99,76.961,1.05984712]
[1771905395232,12.98886853,76.989,76.961,1.05984712]
[1771905395930,12.74886853,76.989,76.959,1.05984712]
[1771905397232,12.74886853,76.989,76.961,1.05984712]
[1771905397821,1.00727254,76.988,76.961,1.05984712]
[1771905398221,12.74886853,76.989,76.961,1.05984712]
[1771905398411,12.98811236,76.994,76.961,1.05984712]
[1771905398811,1.00812427,76.979,76.952,1.05984712]
[1771905399218,11.5936421,76.97,76.936,1.05984712]
[1771905399421,1.00812427,76.969,76.936,1.05984712]
[1771905400636,1.00812427,76.969,76.938,1.05984712]
[1771905401434,12.99241243,76.968,76.938,1.05984712]
[1771905401639,1.01063206,76.959,76.933,1.05984712]
[1771905401832,11.5936421,76.97,76.941,1.05984712]
[1771905402139,12.9906641,76.979,76.941,1.05984712]
[1771905402637,12.9906641,76.979,76.951,1.05984712]
[1771905403340,11.5936421,76.96,76.944,1.05984712]
[1771905403534,1.01225008,76.959,76.937,1.05984712]
[1771905404127,11.5936421,76.95,76.93,14.05855492]
[1771905405742,1.01383711,76.956,76.93,14.05855492]
[1771905406258,1.01383711,76.956,76.931,1.05984712]
[1771905407242,12.99460723,76.955,76.931,1.05984712]
[1771905407442,14.00997269,76.955,76.931,1.05984712]
[1771905407640,14.00997269,76.955,76.921,13.000351]
[1771905407641,1.01536546,76.949,76.924,1.05984712]
[1771905408536,1.0120087,76.939,76.92,0.2]
[1771905408742,11.5936421,76.93,76.92,0.2]
[1771905408937,1.0120087,76.939,76.92,0.2]
[1771905409840,14.00948718,76.938,76.92,0.2]
[1771905410022,1.0120087,76.937,76.92,0.2]
[1771905411132,6.79619235,76.95,76.921,1.00577024]
[1771905411445,12.99619258,76.946,76.921,1.00577024]
[1771905411646,11.5936421,76.95,76.921,1.00577024]
[1771905412745,12.99562047,76.949,76.922,13.000182]
[1771905412949,12.99562047,76.949,76.923,1.00577024]
[1771905413651,11.5936421,76.95,76.923,1.00577024]
[1771905413849,3.69383402,76.954,76.923,1.00577024]
[1771905414352,12.994337,76.957,76.931,1.00577024]
[1771905416456,14.0063457,76.957,76.931,1.00577024]
[1771905417856,14.0063457,76.957,76.92,5.39894792]
[1771905417857,1.0120087,76.949,76.922,1.00577024]
[1771905419044,5.19894792,76.96,76.93,5.19894792]
[1771905419249,5.19894792,76.96,76.931,1.00577024]
[1771905419445,3.69383402,76.966,76.931,1.00577024]
[1771905420231,3.69383402,76.966,76.941,1.00577024]
[1771905421059,12.99161739,76.973,76.943,1.00577024]
[1771905421432,5.19894792,76.97,76.943,1.00577024]
[1771905421633,1.0120087,76.969,76.943,1.00577024]
[1771905421953,1.0120087,76.959,76.921,1.00577024]
[1771905422354,1.0120087,76.959,76.922,1.00577024]
[1771905423352,1.0120087,76.959,76.92,5.39894792]
[1771905423353,1.0120087,76.967,76.931,1.00577024]
[1771905424551,5.19894792,76.96,76.933,1.00577024]
[1771905425251,1.0120087,76.959,76.933,1.00577024]
[1771905427635,14.00608145,76.959,76.935,1.00577024]
[1771905428036,1.0120087,76.969,76.941,1.00577024]
[1771905428962,5.19894792,76.96,76.941,1.00577024]
[1771905431256,5.19894792,76.96,76.942,12.99680278]
[1771905431658,1.0120087,76.964,76.942,12.99680278]
[1771905431846,1.0120087,76.959,76.923,1.00577024]
[1771905432456,5.19894792,76.96,76.92,5.39894792]
[1771905432457,1.0120087,76.939,76.92,0.2]
[1771905433659,12.99747848,76.938,76.92,0.2]
[1771905433958,14.00948718,76.938,76.92,0.2]
[1771905434360,14.00948718,76.938,76.909,1.00577024]
[1771905434361,1.0120087,76.937,76.909,1.00577024]
[1771905434557,1.0120087,76.929,76.909,1.00577024]
[1771905434756,1.0120087,76.929,76.901,1.00577024]
[1771905435662,1.0120087,76.919,76.891,1.00577024]
[1771905436739,5.19894792,76.91,76.88,13.00726131]
[1771905436945,1.0120087,76.909,76.872,1.00577024]
[1771905437443,5.19894792,76.92,76.881,1.00577024]
[1771905437638,13.00068903,76.919,76.891,1.00577024]
[1771905438665,1.03182287,76.918,76.891,1.00577024]
[1771905440365,13.00003557,76.923,76.892,1.09250417]
[1771905440565,12.99747848,76.938,76.901,1.09250417]
[1771905440753,3.69383402,76.935,76.901,1.09250417]
[1771905443353,5.19894792,76.93,76.903,1.10835856]
[1771905444961,3.69383402,76.937,76.9,5.19894792]
[1771905444962,12.99899907,76.929,76.905,1.10835856]
[1771905445564,12.99730955,76.939,76.905,1.10835856]
[1771905445970,14.02853054,76.949,76.911,1.10835856]
[1771905446165,1.03291007,76.948,76.911,1.10835856]
[1771905446373,3.69383402,76.946,76.911,1.10835856]
[1771905446759,5.19894792,76.94,76.911,1.10835856]
[1771905447259,12.99730955,76.939,76.911,1.10835856]
[1771905448466,12.9941976,76.958,76.921,1.10835856]
[1771905448657,1.03329103,76.949,76.921,1.10835856]
[1771905448856,1.03329103,76.949,76.882,107.19383402]
[1771905448857,1.10316131,76.939,76.901,13.00373207]
[1771905449260,14.10063979,76.938,76.9,5.20136115]
[1771905449465,1.10316131,76.937,76.9,5.20136115]
[1771905450357,1.10316131,76.944,76.91,5.20136115]
[1771905450655,12.99663387,76.943,76.91,5.20136115]
[1771905450863,12.99517762,76.952,76.921,1.10835856]
[1771905451472,3.69383402,76.955,76.923,1.10835856]
[1771905451673,4.79699533,76.955,76.923,1.10835856]
[1771905451874,3.69383402,76.955,76.923,1.10835856]
[1771905452167,6.79466951,76.966,76.931,1.10835856]
[1771905452470,14.09545142,76.969,76.931,1.10835856]
[1771905453069,1.10316131,76.968,76.931,1.10835856]
[1771905454170,1.10316131,76.968,76.933,1.10835856]
[1771905455472,12.99258123,76.967,76.933,1.10835856]
[1771905455772,1.10316131,76.966,76.933,1.10835856]
[1771905456351,1.10316131,76.966,76.935,1.10835856]
[1771905457277,5.20136115,76.95,76.929,1.10835856]
[1771905458579,1.10316131,76.953,76.93,12.9988301]
[1771905458791,1.10316131,76.953,76.931,1.10835856]
[1771905459372,18.1934674,76.97,76.931,1.10835856]
[1771905460579,5.20136115,76.97,76.941,1.10835856]
[1771905460773,5.20136115,76.97,76.943,1.10835856]
[1771905461076,12.99224363,76.969,76.943,1.10835856]
[1771905461276,14.09540494,76.969,76.943,1.10835856]
[1771905461454,1.10316131,76.969,76.943,1.10835856]
[1771905462780,18.19346816,76.97,76.945,1.10835856]
[1771905466368,1.10316131,76.953,76.931,1.10835856]
[1771905466568,1.10316131,76.968,76.933,1.10835856]
[1771905468670,1.10316131,76.968,76.935,1.01057547]
[1771905468872,5.20136115,76.96,76.935,1.01057547]
[1771905469074,1.01924734,76.959,76.934,12.99815426]
[1771905471390,1.01924734,76.959,76.934,1.01057547]
[1771905471575,1.01924734,76.966,76.934,1.01057547]
[1771905471971,1.01924734,76.949,76.925,1.01057547]
[1771905473282,1.01924734,76.949,76.911,32.50474928]
[1771905473486,1.01924734,76.929,76.901,1.01057547]
[1771905474572,14.01841539,76.928,76.903,1.01057547]
[1771905474776,1.01924734,76.927,76.903,1.01057547]
[1771905476672,1.01924734,76.927,76.904,13.00322479]
[1771905476870,1.01924734,76.927,76.905,1.01057547]
[1771905477569,1.01924734,76.936,76.905,1.01057547]
[1771905480274,12.99666087,76.943,76.911,1.01057547]
[1771905480473,1.01924734,76.942,76.911,1.01057547]
[1771905482796,12.9969717,76.941,76.913,1.01057547]
[1771905483976,1.01924734,76.948,76.921,1.01057547]
[1771905484894,5.20136115,76.96,76.931,1.01057547]
[1771905485191,1.01924734,76.959,76.931,1.01057547]
[1771905486499,1.01924734,76.965,76.931,1.01057547]
[1771905489174,1.01924734,76.949,76.92,5.20136115]
[1771905489385,1.01924734,76.949,76.921,1.01057547]
[1771905489587,5.20136115,76.95,76.921,1.01057547]
[1771905489792,1.01924734,76.955,76.921,1.01057547]
[1771905491100,1.01924734,76.955,76.931,1.01057547]
[1771905491302,1.01924734,76.955,76.933,1.01057547]
[1771905492394,1.01924734,76.955,76.934,12.99815426]
[1771905492582,1.01924734,76.955,76.935,1.01057547]
[1771905493497,12.99319529,76.964,76.935,1.01057547]
[1771905493689,1.01924734,76.967,76.935,1.01057547]
[1771905493994,1.01924734,76.959,76.925,1.01057547]
[1771905494384,12.99275004,76.966,76.941,14.00754431]
[1771905494582,14.01199738,76.966,76.942,1.01057547]
[1771905494787,1.01924734,76.965,76.942,1.01057547]
[1771905495202,6.22060849,76.96,76.942,1.01057547]
[1771905495901,1.01924734,76.96,76.942,1.01057547]
[1771905496322,14.01199738,76.966,76.942,1.01057547]
[1771905496484,5.20136115,76.97,76.942,1.01057547]
[1771905496795,1.01924734,76.969,76.942,1.01057547]
[1771905497385,42.9636261,76.98,76.961,1.01057547]
[1771905497386,6.79367783,76.98,76.961,1.01057547]
[1771905497590,1.01924734,76.982,76.961,1.01057547]
[1771905498600,1.01924734,76.982,76.962,12.99342532]
[1771905499102,1.01924734,76.982,76.962,14.09558822]
[1771905499799,1.03404366,76.979,76.946,1.1021629]
[1771905499999,1.03404366,76.959,76.939,1.1021629]
[1771905502908,1.0333292,76.968,76.941,1.05893215]
[1771905503294,5.20136115,76.96,76.94,12.99714062]
[1771905503492,1.0333292,76.959,76.94,12.99714062]
[1771905504712,1.0333292,76.959,76.936,14.05674851]
[1771905504901,1.0333292,76.959,76.937,1.05893215]
[1771905505300,1.0333292,76.984,76.95,5.20136115]
[1771905505500,1.0333292,76.983,76.951,1.05893215]
[1771905505822,12.98985658,76.984,76.951,1.05893215]
[1771905505823,1.0333292,76.979,76.951,1.05893215]
[1771905506817,1.0333292,76.979,76.953,1.05893215]
[1771905508424,1.0333292,76.977,76.946,1.05893215]
[1771905508723,1.0333292,76.969,76.941,1.05893215]
[1771905508921,1.0333292,76.967,76.941,12.9969717]
[1771905509416,1.0333292,76.967,76.941,14.05590385]
[1771905509919,1.0333292,76.959,76.923,1.05893215]
[1771905510115,1.0333292,76.949,76.923,1.05893215]
[1771905511421,1.0333292,76.947,76.923,1.05893215]
[1771905512005,1.0333292,76.947,76.924,14.05877615]
[1771905512319,1.0333292,76.947,76.925,1.05893215]
[1771905514321,1.0333292,76.954,76.927,1.05893215]
[1771905515126,1.0333292,76.954,76.931,1.05893215]
[1771905516600,1.0333292,76.954,76.933,1.05893215]
[1771905517425,12.99393183,76.959,76.933,1.05893215]
[1771905517805,1.0333292,76.959,76.935,1.05893215]
[1771905519512,1.0333292,76.969,76.941,1.05893215]
[1771905520105,1.0333292,76.967,76.933,1.05893215]
[1771905521324,1.0333292,76.959,76.926,1.05893215]
[1771905522020,1.0333292,76.959,76.931,1.05893215]
[1771905522209,1.0333292,76.957,76.933,1.05893215]
[1771905524420,1.0333292,76.957,76.935,1.05893215]
[1771905525408,1.0333292,76.962,76.935,1.05893215]
[1771905527028,1.0333292,76.959,76.935,1.05893215]
[1771905527426,1.0333292,76.959,76.931,1.05893215]
[1771905527626,1.0333292,76.959,76.931,14.05759328]
[1771905528535,1.0333292,76.959,76.931,12.99866113]
[1771905529731,1.0333292,76.959,76.931,1.07236339]
[1771905530826,1.06793872,76.957,76.931,1.07236339]
[1771905532331,1.06793872,76.957,76.933,1.07236339]
[1771905534933,1.06793872,76.957,76.934,12.99815426]
[1771905535335,1.06793872,76.955,76.93,12.9988131]
[1771905535535,1.06793872,76.955,76.931,1.07236339]
[1771905537237,1.06793872,76.972,76.94,5.1990865]
[1771905537435,1.06793872,76.972,76.941,1.07236339]
[1771905538740,1.06793872,76.97,76.943,1.07236339]
[1771905539424,1.06793872,76.969,76.939,1.07236339]
[1771905540923,1.06793872,76.967,76.94,12.99714062]
[1771905541342,1.06793872,76.959,76.931,12.99866113]
[1771905546145,12.99324244,76.964,76.931,1.07236339]
[1771905546444,1.06793872,76.963,76.931,1.07236339]
[1771905546947,1.06793872,76.959,76.931,1.07236339]
[1771905547332,1.06793872,76.949,76.922,1.07236339]
[1771905549077,1.06793872,76.949,76.923,13.000013]
[1771905549459,1.06793872,76.947,76.923,13.000013]
[1771905552282,1.06793872,76.947,76.923,1.07236339]
[1771905554166,1.06793872,76.947,76.925,1.07236339]
[1771905554770,1.06793872,76.952,76.925,1.07236339]
[1771905554964,1.06793872,76.959,76.931,1.07236339]
[1771905556082,12.99342532,76.962,76.933,1.07236339]
[1771905556468,1.06793872,76.961,76.933,1.07236339]
[1771905556864,1.06793872,76.961,76.94,5.1990865]
[1771905557068,1.06793872,76.969,76.941,1.07236339]
[1771905557786,12.99119607,76.976,76.941,1.07236339]
[1771905557985,1.02631572,76.975,76.941,1.07236339]
[1771905561392,1.02631572,76.975,76.95,5.1990865]
[1771905561596,3.69383402,76.991,76.942,45.48880974]
[1771905561597,1.09803857,76.983,76.961,1.02280225]
[1771905563392,1.09803857,76.983,76.951,1.02280225]
[1771905564879,1.09803857,76.979,76.952,12.99511383]
[1771905565180,1.09803857,76.969,76.952,12.99511383]
[1771905567703,1.09803857,76.969,76.947,1.02280225]
[1771905569503,1.09803857,76.959,76.941,12.9969717]
[1771905569694,1.09803857,76.959,76.935,1.02280225]
[1771905570381,1.09803857,76.957,76.934,12.99815426]
[1771905571384,1.09803857,76.957,76.934,14.02095651]
[1771905571714,1.09803857,76.957,76.935,1.02280225]
[1771905572992,6.79295162,76.973,76.951,1.02280225]
[1771905573511,1.09803857,76.979,76.951,1.02280225]
[1771905575910,1.03803857,76.978,76.949,12.99561603]
[1771905576608,5.19417149,76.97,76.949,12.99561603]
[1771905577017,5.19417149,76.97,76.944,12.99646496]
[1771905577987,1.09803857,76.969,76.944,12.99646496]
[1771905578593,1.09803857,76.969,76.945,1.02280225]
[1771905579309,1.09803857,76.959,76.933,1.02280225]
[1771905581626,1.09803857,76.959,76.934,14.02095651]
[1771905582322,1.09803857,76.959,76.935,1.02280225]
[1771905585124,1.09803857,76.959,76.937,1.02280225]
[1771905585526,1.09803857,76.965,76.937,1.02280225]
[1771905587734,1.09803857,76.965,76.939,1.02280225]
[1771905588735,1.08547549,76.959,76.939,1.02280225]
[1771905590439,1.08547549,76.949,76.9,5.19417149]
[1771905590739,4.77930951,76.955,76.92,5.19417149]
[1771905590932,5.19417149,76.96,76.92,5.19417149]
[1771905591139,1.08547549,76.959,76.92,5.19417149]
[1771905591639,1.08547549,76.964,76.93,5.19417149]
[1771905592220,6.27964698,76.97,76.932,45.4947226]
[1771905592420,6.27964698,76.97,76.933,1.09012071]
[1771905592618,1.08547549,76.97,76.941,1.09012071]
[1771905592821,14.07771912,76.969,76.941,1.09012071]
[1771905593041,1.08547549,76.968,76.941,1.09012071]
[1771905595243,1.08547549,76.968,76.942,12.99680278]
[1771905595543,1.08547549,76.968,76.943,1.09012071]
[1771905596222,1.08547549,76.974,76.943,1.09012071]
[1771905597431,1.08547549,76.974,76.921,0.28432314]
[1771905597432,5.69508727,76.983,76.961,1.09012071]
[1771905597655,1.08547549,76.995,76.971,0.22033962]
[1771905597837,12.98802504,76.994,76.97,5.19417149]
[1771905598051,1.08547549,76.993,76.96,5.19417149]
[1771905598351,1.08547549,76.993,76.961,0.22033962]
[1771905599540,1.08547549,76.993,76.963,0.22261957]
[1771905600048,1.08547549,76.993,76.97,5.19417149]
[1771905600250,1.08547549,77.008,76.981,0.22261957]
[1771905600650,0.1,77.03,76.991,0.22372768]
[1771905600651,1.08547549,77.015,76.991,0.22372768]
[1771905601752,1.08547549,77.015,76.992,13.21317889]
[1771905601952,1.08547549,77.015,76.992,0.22481647]
[1771905602251,1.08547549,77.015,76.988,12.98891833]
[1771905602448,1.08547549,77.015,76.99,5.19417149]
[1771905602841,1.08547549,77.015,76.989,0.22481647]
[1771905603156,1.08547549,77.015,76.988,12.98891833]
[1771905603452,1.08547549,77.015,76.988,13.21481129]
[1771905603747,1.08547549,77.014,76.98,5.42113087]
[1771905603951,1.08547549,77.014,76.93,51.99471235]
[1771905603952,1.08547549,77.009,76.975,12.99123091]
[1771905604150,1.08547549,77.009,76.975,45.4693082]
[1771905604357,1.08547549,77.009,76.98,5.19417149]
[1771905604545,1.08547549,77.009,76.975,12.99123091]
[1771905604945,1.08547549,77.009,76.98,5.19417149]
[1771905605651,1.08547549,77.009,76.981,0.22904742]
[1771905606458,1.08547549,77.007,76.981,13.21910771]
[1771905607444,1.08547549,77.007,76.982,0.23009623]
[1771905607843,1.08547549,77.007,76.981,12.99006029]
[1771905609940,14.07042482,77.013,76.982,0.23112826]
[1771905610148,1.08547549,76.999,76.96,5.19417149]
[1771905610347,1.08547549,76.999,76.957,12.99422962]
[1771905610348,1.08547549,76.995,76.97,5.19417149]
[1771905610559,1.08547549,77.029,76.991,0.23011965]
[1771905610766,1.08547549,77.029,76.96,5.19417149]
[1771905610767,1.08547549,77.029,77.001,0.23011965]
[1771905611056,1.08547549,77.024,77.0,5.19417149]
[1771905611361,1.08547549,77.009,76.981,12.99021836]
[1771905611860,1.08547549,77.009,76.973,0.22912271]
[1771905612162,1.08547549,77.009,76.98,5.19417149]
[1771905612755,1.08547549,77.009,76.979,0.22912271]
[1771905615364,1.08547549,77.015,76.981,0.22618487]
[1771905616260,12.98142887,77.034,77.001,0.22523097]
[1771905616844,12.98181751,77.031,77.001,0.22523097]
[1771905617064,1.08547549,77.035,77.001,0.22523097]
[1771905617065,14.0675991,77.029,77.001,0.22523097]
[1771905617244,1.08547549,77.028,77.003,0.22428317]
[1771905619159,1.06575728,77.019,76.98,5.19417149]
[1771905619354,1.06575728,77.017,76.98,5.19417149]
[1771905620466,1.06575728,77.017,76.98,50.66052638]
[1771905620972,1.06575728,77.009,76.98,12.99038711]
[1771905621153,1.06575728,77.009,76.98,18.1845586]
[1771905621464,1.06575728,77.009,76.981,0.21970157]
[1771905621766,3.69383402,77.036,76.97,5.19417149]
[1771905621767,1.06575728,77.007,76.97,5.19417149]
[1771905621943,1.06575728,77.007,76.972,12.99164081]
[1771905622564,1.06575728,77.007,76.972,13.20872593]
[1771905622768,1.06575728,77.007,76.973,0.21708512]
[1771905623069,1.06575728,77.007,76.98,5.19417149]
[1771905623468,45.45100381,77.006,76.97,5.19417149]
[1771905623656,1.08919264,76.999,76.962,0.2162352]
[1771905623865,1.08919264,76.999,76.97,5.19417149]
[1771905624058,1.08919264,76.999,76.97,5.41040669]
[1771905624261,1.08919264,76.999,76.971,0.2162352]
[1771905625845,1.08919264,76.999,76.973,0.21455733]
[1771905626571,1.08919264,76.999,76.972,12.99173725]
[1771905627258,1.08919264,76.999,76.973,0.21374056]
[1771905627446,1.08919264,77.009,76.98,5.40711609]
[1771905627650,1.08919264,77.009,76.981,0.2129446]
[1771905627865,3.69383402,77.027,76.991,1.04205625]
[1771905628458,3.69383402,77.026,76.991,1.04205625]
[1771905629776,1.08919264,77.029,77.001,1.04205625]
[1771905630771,1.08919264,77.028,76.993,1.04205625]
[1771905631165,1.08919264,77.028,77.001,1.04205625]
[1771905631671,0.1,77.04,77.011,1.04205625]
[1771905631968,0.1,77.04,77.023,1.04205625]
[1771905633856,0.1,77.05,77.031,1.04205625]
[1771905635574,5.18517242,77.08,77.024,45.44038221]
[1771905635575,1.08919264,77.077,77.041,1.04205625]
[1771905635765,1.08919264,77.077,77.051,1.04205625]
[1771905636076,1.08919264,77.069,77.036,1.04205625]
[1771905636475,1.08919264,77.069,77.037,1.04205625]
[1771905637073,1.08919264,77.059,77.031,12.98178655]
[1771905637277,1.08919264,77.052,77.032,1.04205625]
[1771905637988,1.08919264,77.052,77.033,12.9814495]
[1771905638154,5.18517242,77.06,77.033,45.43507327]
[1771905638360,1.08919264,77.058,77.034,1.04205625]
[1771905638576,1.08919264,77.079,77.051,1.04205625]
[1771905640076,1.08919264,77.087,77.061,1.04205625]
[1771905640880,1.08919264,77.087,77.053,1.04205625]
[1771905641978,1.08919264,77.087,77.055,1.04205625]
[1771905642160,1.08919264,77.079,77.054,12.97791159]
[1771905643375,32.42688977,77.097,77.051,1.04205625]
[1771905643376,1.08919264,77.085,77.051,1.04205625]
[1771905643578,1.08919264,77.085,77.061,1.04205625]
[1771905644376,1.08919264,77.093,77.061,1.04205625]
[1771905644971,1.08919264,77.093,77.049,45.42563823]
[1771905644972,1.18919264,77.1,77.071,1.04205625]
[1771905645362,1.18919264,77.1,77.081,1.04205625]
[1771905646364,0.1,77.1,77.081,1.04205625]
[1771905647276,1.08919264,77.098,77.057,32.44318984]
[1771905647465,1.08919264,77.098,77.061,1.04205625]
[1771905647660,1.08919264,77.098,77.07,5.18517242]
[1771905648180,5.18517242,77.09,77.06,5.18517242]
[1771905648479,1.01971545,77.089,77.06,6.17905834]
[1771905648680,1.01971545,77.089,77.061,0.99388592]
[1771905649378,1.01971545,77.089,77.074,0.92998962]
[1771905650080,1.01971545,77.089,77.075,12.9743756]
[1771905650277,1.01971545,77.089,77.074,0.92998962]
[1771905650583,1.01971545,77.089,77.075,12.9743756]
[1771905651274,5.28517242,77.1,77.075,12.9743756]
[1771905651275,1.01971545,77.096,77.075,12.9743756]
[1771905651781,1.01971545,77.096,77.075,13.96826152]
[1771905653389,5.28517242,77.11,77.071,0.99388592]
[1771905653596,5.18517242,77.09,77.058,0.99388592]
[1771905653892,5.18517242,77.09,77.015,5.36086188]
[1771905653893,1.01971545,77.078,77.052,12.97824845]
[1771905655877,1.01971545,77.078,77.044,0.99388592]
[1771905656082,1.01971545,77.078,77.045,13.97331352]
[1771905657991,1.01971545,77.076,77.046,0.99388592]
[1771905659371,1.01971545,77.076,77.051,0.99388592]
[1771905659874,1.01971545,77.076,77.046,0.99388592]
[1771905660074,1.01971545,77.076,77.047,13.9729766]
[1771905660275,1.01971545,77.076,77.048,0.99388592]
[1771905660697,1.01971545,77.059,77.021,0.99388592]
[1771905660889,5.18517242,77.04,77.007,0.99388592]
[1771905661084,1.01971545,77.039,77.007,0.99388592]
[1771905661273,5.18517242,77.03,77.002,12.98659676]
[1771905661473,1.01971545,77.019,76.991,12.98853112]
[1771905661676,1.01971545,77.009,76.971,13.98579196]
[1771905661883,1.01971545,77.009,76.973,32.47862441]
[1771905662995,1.01971545,77.009,76.98,5.18517242]
[1771905663179,1.01971545,77.027,76.99,5.18517242]
[1771905663381,1.01971545,77.027,77.0,11.58301789]
[1771905663690,11.58301789,77.05,77.01,11.58301789]
[1771905663998,11.58301789,77.05,77.011,0.99388592]
[1771905664196,11.58301789,77.05,77.021,0.99388592]
[1771905664381,3.69383402,77.057,77.023,0.99388592]
[1771905664581,11.58301789,77.05,77.023,0.99388592]
[1771905665500,11.58301789,77.05,77.024,12.98296634]